bitfinex-derivatives/quotes_SOLF0:USTF0_20250125
["timestamp","ask_amount","ask_price","bid_price","bid_amount"]
[1737836227831,3.876,258.04,257.94,9.18690379]
[1737836228032,2.5957,258.07,257.94,9.18690379]
[1737836228330,0.02511753,258.02,257.94,9.18690379]
[1737836228729,0.02511753,258.02,257.9,13.06480379]
[1737836229231,3.8771,257.96,257.9,13.06480379]
[1737836229628,3.9042337,257.96,257.9,13.06480379]
[1737836229835,0.0271337,257.96,257.9,9.18690379]
[1737836230026,0.0271337,257.96,257.92,3.8777]
[1737836238842,0.0271337,257.96,257.9,9.18690379]
[1737836238843,0.0271337,257.96,257.95,3.8773]
[1737836247755,0.0271337,257.96,257.95,9.75184924]
[1737836248254,1.2249,258.06,257.95,5.87454924]
[1737836248448,3.876,258.04,258.01,5.87454924]
[1737836249758,3.876,258.04,258.0,0.02478868]
[1737836249953,3.8762,258.02,258.0,0.02478868]
[1737836250154,0.02551656,258.05,258.0,0.02478868]
[1737836250553,3.8763,258.01,258.0,0.02478868]
[1737836251658,0.02551656,258.05,257.92,9.17552455]
[1737836251958,1.2249,258.06,257.89,4.65362444]
[1737836251959,3.8773,257.95,257.89,4.65362444]
[1737836252861,3.90638751,257.95,257.89,4.65362444]
[1737836253062,0.02908751,257.95,257.89,0.77552444]
[1737836253263,0.02908751,257.95,257.87,9.17552455]
[1737836254267,3.8778,257.92,257.87,9.17552455]
[1737836254759,3.8779,257.91,257.87,9.17552455]
[1737836255460,3.8777,257.92,257.87,9.17552455]
[1737836255665,3.8777,257.92,257.87,13.05402455]
[1737836257166,0.02908751,257.95,257.83,9.17552455]
[1737836257463,0.02819085,257.92,257.83,13.05452455]
[1737836257766,0.02819085,257.92,257.83,9.17552455]
[1737836259972,3.8782,257.89,257.85,3.8787]
[1737836261270,3.878,257.9,257.85,3.8787]
[1737836266275,0.02819085,257.92,257.83,9.17552455]
[1737836266472,3.8782,257.89,257.83,9.17552455]
[1737836267377,3.8782,257.89,257.84,3.8789]
[1737836269079,3.8781,257.9,257.84,3.8789]
[1737836269274,0.02819085,257.92,257.84,3.8789]
[1737836270077,3.8783,257.88,257.84,3.8789]
[1737836271680,3.8783,257.88,257.85,5.87944219]
[1737836272177,5.90763304,257.92,257.83,5.87944219]
[1737836272476,5.87944219,257.88,257.78,5.87944219]
[1737836272979,0.02713813,257.86,257.78,9.75914219]
[1737836273481,0.02713813,257.86,257.71,0.0733]
[1737836273482,0.02713813,257.86,257.81,5.87944219]
[1737836273680,3.90583813,257.86,257.84,5.87944219]
[1737836275073,0.02713813,257.86,257.84,5.87944219]
[1737836275780,0.02713813,257.86,257.85,3.8788]
[1737836281685,3.8778,257.92,257.84,5.87944219]
[1737836281885,3.8778,257.92,257.88,5.87944219]
[1737836283090,3.90291402,257.93,257.88,9.75774219]
[1737836283584,0.02531402,257.93,257.91,3.8779]
[1737836283781,0.02531402,257.93,257.92,5.87944219]
[1737836283989,5.87944219,258.05,257.94,5.87944219]
[1737836284287,5.87944219,258.01,257.92,5.87944219]
[1737836284489,5.87944219,257.98,257.9,5.87944219]
[1737836284993,5.87944219,257.98,257.82,0.0732]
[1737836284994,0.02930061,257.97,257.91,0.02695934]
[1737836285186,5.87944219,257.96,257.91,0.02695934]
[1737836288489,3.8776,257.93,257.91,0.02695934]
[1737836288789,0.02930061,257.97,257.91,0.02695934]
[1737836289086,3.90640061,257.97,257.92,3.8776]
[1737836289280,0.02930061,257.97,257.92,5.87944219]
[1737836289484,0.02930061,257.97,257.95,5.87944219]
[1737836289685,0.02930061,257.97,257.95,9.75664219]
[1737836289988,0.02930061,257.97,257.95,5.87944219]
[1737836291082,0.02930061,257.97,257.96,3.8771]
[1737836293391,2.5943,258.08,257.95,5.87944219]
[1737836293392,2.5943,258.08,257.98,3.8767]
[1737836293594,2.5943,258.08,258.0,5.87944219]
[1737836293887,5.87944219,258.07,257.98,5.87944219]
[1737836294083,5.87944219,258.04,257.97,3.8769]
[1737836294494,0.02707358,258.03,257.99,3.8766]
[1737836295586,0.02707358,258.03,257.98,0.02579182]
[1737836296392,0.02707358,258.03,258.01,5.87944219]
[1737836296592,5.87944219,258.12,258.01,5.87944219]
[1737836296791,5.87944219,258.14,258.04,5.87944219]
[1737836296989,2.5698,258.15,258.08,5.87944219]
[1737836297193,2.5698,258.15,258.1,5.87944219]
[1737836297394,5.87944219,258.22,258.12,5.87944219]
[1737836297594,3.8737,258.19,258.12,9.75404219]
[1737836297794,5.87944219,258.18,258.14,0.02790636]
[1737836297997,5.87944219,258.16,258.14,0.02790636]
[1737836298294,3.8743,258.15,258.12,0.026159]
[1737836298493,5.87944219,258.14,258.04,5.87944219]
[1737836298695,5.87944219,258.08,258.0,5.87944219]
[1737836298900,5.87944219,258.08,257.98,5.87944219]
[1737836299400,5.87944219,258.04,257.96,5.87944219]
[1737836299602,3.8761,258.03,257.96,5.87944219]
[1737836299804,3.90253046,258.03,257.97,0.02541921]
[1737836300004,3.8765,258.01,257.97,0.02541921]
[1737836300303,5.87944219,257.98,257.97,0.02541921]
[1737836300500,5.87944219,258.0,257.97,0.02541921]
[1737836301203,3.8767,257.99,257.97,0.02541921]
[1737836301402,5.87944219,258.02,257.97,0.02541921]
[1737836301800,3.90253046,258.03,257.97,0.02541921]
[1737836302504,0.02643046,258.03,257.97,0.02541921]
[1737836303300,3.90253046,258.03,257.97,0.02541921]
[1737836303906,3.90253046,258.03,257.97,3.90231921]
[1737836306006,3.8767,257.99,257.97,0.02541921]
[1737836306401,3.8767,257.99,257.93,3.8775]
[1737836306606,3.8772,257.96,257.89,3.878]
[1737836306808,3.8772,257.96,257.85,9.18024719]
[1737836307708,0.02524308,257.93,257.88,0.02814826]
[1737836308207,0.02524308,257.93,257.9,3.8779]
[1737836308406,0.02524308,257.93,257.88,0.02814826]
[1737836309108,0.02524308,257.93,257.91,3.8778]
[1737836310311,0.02524308,257.93,257.88,0.02814826]
[1737836310911,0.02524308,257.93,257.88,3.90644826]
[1737836311513,0.02524308,257.93,257.89,3.8781]
[1737836313313,0.02524308,257.93,257.9,3.878]
[1737836314818,0.02524308,257.93,257.88,3.90634826]
[1737836315016,0.02524308,257.93,257.88,0.02814826]
[1737836315316,3.8782,257.89,257.88,0.02814826]
[1737836315506,3.8782,257.89,257.77,9.18024719]
[1737836315713,1.2263,257.92,257.77,9.18024719]
[1737836316216,3.8783,257.89,257.83,3.879]
[1737836316412,1.2263,257.92,257.77,9.18024719]
[1737836316617,0.0274367,257.89,257.83,0.0256455]
[1737836317918,3.8784,257.88,257.83,0.0256455]
[1737836318119,0.0274367,257.89,257.83,0.0256455]
[1737836319821,0.0274367,257.89,257.86,3.8785]
[1737836320020,0.0274367,257.89,257.83,0.0256455]
[1737836320826,0.0274367,257.89,257.88,3.8783]
[1737836323622,3.67e-05,257.89,257.88,3.8783]
[1737836327522,6.4099,258.03,257.98,3.8767]
[1737836327825,2.5338,258.03,257.92,9.18024719]
[1737836328021,6.4099,258.03,257.97,3.8769]
[1737836328218,9.18024719,258.02,257.88,9.18024719]
[1737836328727,9.20845982,257.98,257.92,0.02952147]
[1737836329424,3.8771,257.96,257.92,0.02952147]
[1737836330524,9.20845982,257.98,257.92,0.02952147]
[1737836330729,13.08535982,257.98,257.92,0.02952147]
[1737836331431,3.90511263,257.98,257.92,0.02952147]
[1737836332025,0.02821263,257.98,257.92,0.02952147]
[1737836333122,0.02821263,257.98,257.92,9.20976866]
[1737836333729,9.18024719,258.15,257.97,9.18024719]
[1737836333931,9.18024719,258.15,258.01,9.18024719]
[1737836334131,2.5948,258.17,258.01,9.18024719]
[1737836334834,0.02445902,258.12,258.06,0.02941553]
[1737836335034,0.02445902,258.12,258.08,3.8752]
[1737836336429,0.02445902,258.12,258.06,0.02941553]
[1737836336734,0.02445902,258.12,258.1,3.875]
[1737836340832,0.02445902,258.12,258.08,3.8752]
[1737836342538,0.02445902,258.12,258.06,0.02941553]
[1737836342741,0.02445902,258.12,258.09,3.8751]
[1737836343232,0.02445902,258.12,258.11,3.8748]
[1737836344434,0.02445902,258.12,258.06,0.02941553]
[1737836345939,0.02445902,258.12,258.1,3.875]
[1737836346938,0.02445902,258.12,258.09,3.8751]
[1737836348039,0.02445902,258.12,258.1,3.875]
[1737836348945,0.02445902,258.12,258.11,3.8748]
[1737836349141,3.8572,258.23,258.09,9.18024719]
[1737836349341,3.8572,258.23,258.15,3.8742]
[1737836349342,3.8734,258.21,258.15,3.8742]
[1737836349735,3.8572,258.23,258.13,9.18024719]
[1737836349935,3.8734,258.21,258.16,3.874]
[1737836350144,3.8572,258.23,258.09,9.18024719]
[1737836350438,0.02805777,258.21,258.16,0.02781804]
[1737836350639,3.8738,258.18,258.16,0.02781804]
[1737836354450,0.02805777,258.21,258.05,9.18024719]
[1737836354645,3.8744,258.15,258.05,9.18024719]
[1737836355042,9.18024719,258.19,258.01,9.18024719]
[1737836355848,3.8753,258.08,258.07,0.02550505]
[1737836356039,9.18024719,258.11,257.97,9.18024719]
[1737836356238,1.3448,258.07,257.97,9.18024719]
[1737836357247,3.90396826,258.05,258.0,3.8764]
[1737836359547,0.02806826,258.05,258.01,3.8763]
[1737836360252,0.02806826,258.05,257.99,0.02659459]
[1737836361442,0.02806826,258.05,258.01,9.18024719]
[1737836361648,0.02806826,258.05,258.03,3.8759]
[1737836362558,0.02806826,258.05,258.04,3.8759]
[1737836365160,6.826e-05,258.05,258.04,3.8759]
[1737836365459,10.51844719,258.19,258.01,9.18024719]
[1737836365460,1.3382,258.19,258.01,9.18024719]
[1737836365652,1.3382,258.19,258.07,9.18024719]
[1737836366357,3.8739,258.18,258.11,3.8748]
[1737836366659,0.02482213,258.16,258.11,3.8748]
[1737836367161,0.02482213,258.16,258.1,0.02879514]
[1737836368259,0.02482213,258.16,258.13,3.8744]
[1737836369065,0.02482213,258.16,258.1,0.02879514]
[1737836370068,0.02482213,258.16,258.11,3.8748]
[1737836371170,2.213e-05,258.16,258.15,3.8742]
[1737836372266,1.3298,258.33,258.22,3.8731]
[1737836372471,2.648,258.32,258.22,3.8731]
[1737836372678,2.648,258.32,258.16,9.18024719]
[1737836372871,2.648,258.32,258.2,3.8734]
[1737836373069,2.648,258.32,258.16,9.18024719]
[1737836373366,0.02948524,258.27,258.21,0.02721892]
[1737836373572,0.02948524,258.27,258.25,3.8727]
[1737836376068,0.02948524,258.27,258.21,0.02721892]
[1737836379271,0.02948524,258.27,258.22,3.8732]
[1737836380278,0.02948524,258.27,258.22,3.8731]
[1737836381074,3.8727,258.26,258.21,0.02721892]
[1737836381375,0.02948524,258.27,258.21,0.02721892]
[1737836383074,3.8727,258.26,258.21,0.02721892]
[1737836383876,3.8727,258.26,258.21,3.90051892]
[1737836384176,0.02948524,258.27,258.21,0.02721892]
[1737836384378,0.02948524,258.27,258.21,3.90051892]
[1737836384578,0.02948524,258.27,258.21,0.02721892]
[1737836385675,0.02948524,258.27,258.24,3.8728]
[1737836385878,0.02948524,258.27,258.21,0.02721892]
[1737836387478,3.90198524,258.27,258.22,3.8732]
[1737836388277,0.02948524,258.27,258.22,3.8732]
[1737836388479,0.02948524,258.27,258.23,3.873]
[1737836389284,3.8729,258.25,258.21,0.02721892]
[1737836392981,0.02948524,258.27,258.21,0.02721892]
[1737836393182,3.8726,258.26,258.21,0.02721892]
[1737836393574,0.02948524,258.27,258.21,0.02721892]
[1737836394282,0.02948524,258.27,258.24,3.8728]
[1737836394982,0.02948524,258.27,258.21,0.02721892]
[1737836395981,0.02948524,258.27,258.22,3.8731]
[1737836397683,0.02948524,258.27,258.21,0.02721892]
[1737836397977,0.02948524,258.27,258.23,3.8729]
[1737836398385,0.02948524,258.27,258.21,0.02721892]
[1737836398584,0.02948524,258.27,258.24,3.8729]
[1737836400180,0.02948524,258.27,258.21,5.89011667]
[1737836400482,0.02948524,258.27,258.26,3.8726]
[1737836402280,3.872,258.3,258.21,0.02721892]
[1737836402281,9.15844898,258.44,258.21,0.02721892]
[1737836402586,9.15844898,258.48,258.26,9.15844898]
[1737836402984,3.8699,258.45,258.36,3.871]
[1737836403186,9.15844898,258.48,258.26,9.15844898]
[1737836403584,0.02781139,258.4,258.37,3.8709]
[1737836403882,0.02781139,258.4,258.3,9.15844898]
[1737836404082,0.02781139,258.4,258.36,0.02652008]
[1737836406777,3.89831139,258.4,258.36,0.02652008]
[1737836406979,0.02781139,258.4,258.36,0.02652008]
[1737836408084,3.8709,258.38,258.36,0.02652008]
[1737836410188,2.5608,258.39,258.22,9.93298232]
[1737836410786,3.872,258.3,258.22,9.93298232]
[1737836411187,0.0258924,258.29,258.23,0.02450006]
[1737836411485,3.8980924,258.29,258.23,3.873]
[1737836411685,3.8980924,258.29,258.23,3.9006644]
[1737836413089,0.0258924,258.29,258.23,0.0276644]
[1737836413586,0.0258924,258.29,258.26,13.03094898]
[1737836419392,0.0258924,258.29,258.27,3.8724]
[1737836420086,0.0258924,258.29,258.23,0.0276644]
[1737836421292,3.8980924,258.29,258.24,3.8728]
[1737836421891,0.0258924,258.29,258.27,5.86010387]
[1737836424892,3.8726,258.26,258.23,0.0276644]
[1737836425194,0.0258924,258.29,258.23,0.0276644]
[1737836425394,3.8726,258.26,258.23,0.0276644]
[1737836428896,3.8726,258.26,258.24,5.86010387]
[1737836429791,0.0258924,258.29,258.23,0.0276644]
[1737836429997,3.8729,258.24,258.23,0.0276644]
[1737836434203,3.8728,258.25,258.23,0.0276644]
[1737836434397,2.5967924,258.29,258.23,5.88776827]
[1737836434599,3.8723,258.28,258.23,9.76076827]
[1737836435102,5.86010387,258.28,258.23,0.0276644]
[1737836435402,3.8729,258.24,258.23,0.0276644]
[1737836437399,5.86010387,258.28,258.23,0.0276644]
[1737836437596,3.8726,258.27,258.23,0.0276644]
[1737836439099,2.5967924,258.29,258.23,0.0276644]
[1737836441104,3.8726,258.27,258.23,0.0276644]
[1737836441503,0.0258924,258.29,258.28,3.8723]
[1737836441704,9.24e-05,258.29,258.28,9.73240387]
[1737836442002,2.5714,258.41,258.28,5.86010387]
[1737836442203,2.5714,258.41,258.33,5.86010387]
[1737836443108,0.02870372,258.4,258.34,3.89868022]
[1737836443308,0.02870372,258.4,258.34,0.02738022]
[1737836443609,0.02870372,258.4,258.35,3.8712]
[1737836444505,0.02870372,258.4,258.34,0.02738022]
[1737836444703,0.02870372,258.4,258.36,3.8711]
[1737836445008,0.02870372,258.4,258.34,0.02738022]
[1737836445511,0.02870372,258.4,258.35,3.8712]
[1737836446011,0.02870372,258.4,258.36,3.8711]
[1737836447811,0.02870372,258.4,258.34,0.02738022]
[1737836448510,0.02870372,258.4,258.35,3.8711]
[1737836449715,0.02870372,258.4,258.34,0.02738022]
[1737836451011,0.02870372,258.4,258.37,5.86010387]
[1737836452118,0.02870372,258.4,258.38,3.8708]
[1737836459629,0.02870372,258.4,258.39,3.8706]
[1737836460230,0.02870372,258.4,258.39,9.73070387]
[1737836460426,3.8629,258.51,258.45,3.8697]
[1737836460631,3.8629,258.51,258.45,5.86010387]
[1737836461733,3.88811539,258.51,258.45,5.88872212]
[1737836461931,7.75701539,258.51,258.47,3.8695]
[1737836462231,7.75701539,258.51,258.45,5.88872212]
[1737836463127,0.02521539,258.51,258.47,5.86010387]
[1737836463326,0.02521539,258.51,258.47,9.72950387]
[1737836463833,0.02521539,258.51,258.49,5.86010387]
[1737836465230,0.02521539,258.51,258.49,9.72930387]
[1737836465733,0.02521539,258.51,258.47,3.8693]
[1737836465935,0.02521539,258.51,258.45,0.02861825]
[1737836466136,5.88531926,258.51,258.45,0.02861825]
[1737836466336,3.8699,258.47,258.45,0.02861825]
[1737836466936,5.86010387,258.47,258.4,5.86010387]
[1737836467135,3.8704,258.44,258.38,5.86010387]
[1737836467334,5.86010387,258.47,258.38,5.86010387]
[1737836467834,3.8703,258.44,258.39,3.871]
[1737836468036,5.86010387,258.47,258.38,5.86010387]
[1737836468232,0.02704299,258.44,258.39,0.02504662]
[1737836469136,3.8706,258.42,258.39,0.02504662]
[1737836470034,3.89744299,258.44,258.39,0.02504662]
[1737836470436,0.02704299,258.44,258.39,0.02504662]
[1737836471533,0.02704299,258.44,258.41,3.8707]
[1737836471730,0.02704299,258.44,258.41,5.86010387]
[1737836472839,0.02704299,258.44,258.39,5.88515049]
[1737836474239,0.02704299,258.44,258.4,3.8709]
[1737836474737,0.02704299,258.44,258.39,5.88515049]
[1737836475038,0.02704299,258.44,258.39,0.02504662]
[1737836476339,3.8708,258.41,258.39,0.02504662]
[1737836476536,0.02704299,258.44,258.4,5.86010387]
[1737836476841,0.02704299,258.44,258.43,9.73050387]
[1737836477541,2.5363,258.5,258.47,3.8697]
[1737836477733,2.5363,258.5,258.47,9.72980387]
[1737836478435,2.5363,258.5,258.47,5.86010387]
[1737836478641,2.5363,258.5,258.46,0.02583484]
[1737836478642,3.8696,258.49,258.46,0.02583484]
[1737836478841,3.8696,258.49,258.45,5.86010387]
[1737836479143,3.8696,258.49,258.45,5.88606763]
[1737836479441,2.56274131,258.5,258.45,5.88606763]
[1737836479635,2.56274131,258.5,258.47,3.8698]
[1737836482144,2.56274131,258.5,258.45,5.88606763]
[1737836482338,2.56274131,258.5,258.45,0.02596376]
[1737836482644,3.8699,258.47,258.45,0.02596376]
[1737836483343,3.87,258.46,258.45,0.02596376]
[1737836483544,2.56274131,258.5,258.45,0.02596376]
[1737836484444,3.87,258.46,258.45,0.02596376]
[1737836484649,5.86010387,258.49,258.4,5.86010387]
[1737836484844,5.86010387,258.49,258.37,5.86010387]
[1737836485753,0.02850613,258.46,258.4,0.02813992]
[1737836485941,5.86010387,258.44,258.35,5.86010387]
[1737836486247,2.5363,258.5,258.25,16.12599051]
[1737836486248,5.86010387,258.37,258.25,16.12599051]
[1737836486445,5.86010387,258.33,258.25,16.12599051]
[1737836487048,5.86010387,258.33,258.25,5.86010387]
[1737836487243,0.02800654,258.32,258.26,0.02555044]
[1737836487544,0.02800654,258.32,258.27,5.86010387]
[1737836487749,0.02800654,258.32,258.3,3.8723]
[1737836488953,0.02800654,258.32,258.26,0.02555044]
[1737836492049,0.02800654,258.32,258.28,3.8726]
[1737836493355,0.02800654,258.32,258.29,3.8725]
[1737836496055,0.02800654,258.32,258.26,0.02555044]
[1737836496259,0.02800654,258.32,258.3,3.8724]
[1737836497256,0.02800654,258.32,258.28,3.8726]
[1737836497464,0.02800654,258.32,258.26,0.02555044]
[1737836498065,3.8724,258.3,258.26,0.02555044]
[1737836498360,0.02800654,258.32,258.26,0.02555044]
[1737836498765,3.8724,258.3,258.26,0.02555044]
[1737836499169,3.8728,258.27,258.26,0.02555044]
[1737836499563,9.15440242,258.31,258.17,9.15440242]
[1737836500365,3.8732,258.25,258.16,3.55565749]
[1737836500666,0.02527468,258.26,258.21,0.02713574]
[1737836501866,0.02527468,258.26,258.25,3.8731]
[1737836507672,0.02527468,258.26,258.25,9.73359793]
[1737836509673,1.2834,258.36,258.25,5.86049793]
[1737836509971,1.2834,258.36,258.31,5.86049793]
[1737836510771,1.31284515,258.36,258.31,5.89026192]
[1737836511773,5.18434515,258.36,258.31,0.02976399]
[1737836512176,1.31284515,258.36,258.32,3.8721]
[1737836512472,1.31284515,258.36,258.31,0.02976399]
[1737836512973,5.18444515,258.36,258.31,0.02976399]
[1737836513170,5.86049793,258.32,258.31,0.02976399]
[1737836513373,5.86049793,258.32,258.26,3.8728]
[1737836513773,9.73269793,258.32,258.22,5.86049793]
[1737836513978,9.73269793,258.32,258.27,3.8728]
[1737836514374,9.76214747,258.32,258.27,3.89830701]
[1737836514677,5.88994747,258.32,258.27,0.02550701]
[1737836514875,0.02944954,258.32,258.27,5.88600494]
[1737836515472,0.02944954,258.32,258.31,3.8722]
[1737836520282,0.02944954,258.32,258.27,5.88600494]
[1737836520479,0.02944954,258.32,258.27,0.02550701]
[1737836522480,0.02944954,258.32,258.29,3.8725]
[1737836525476,0.02944954,258.32,258.27,0.02550701]
[1737836525682,3.90154954,258.32,258.28,3.8726]
[1737836528784,3.8723,258.31,258.27,0.02550701]
[1737836530886,3.8723,258.31,258.27,3.89830701]
[1737836531583,0.02944954,258.32,258.27,0.02550701]
[1737836531886,3.90154954,258.32,258.28,3.8727]
[1737836535688,3.8723,258.31,258.27,3.89830701]
[1737836539790,3.8724,258.3,258.27,0.02550701]
[1737836539988,5.88994747,258.32,258.27,0.02550701]
[1737836541090,5.86049793,258.28,258.27,0.02550701]
[1737836541390,5.86049793,258.25,258.17,10.26588664]
[1737836541592,3.8735,258.23,258.18,3.8741]
[1737836542388,3.90330091,258.23,258.18,3.90161771]
[1737836543689,0.02980091,258.23,258.22,9.73409793]
[1737836544592,9.1e-07,258.23,258.22,9.73409793]
[1737836549986,3.8719,258.34,258.29,9.73299793]
[1737836550693,3.8719,258.34,258.29,5.86049793]
[1737836550991,0.02718025,258.34,258.29,0.02769982]
[1737836551194,5.86049793,258.32,258.29,0.02769982]
[1737836552086,9.73269793,258.32,258.29,0.02769982]
[1737836553091,5.86049793,258.32,258.29,0.02769982]
[1737836553293,0.02718025,258.34,258.3,3.8722]
[1737836554798,0.02718025,258.34,258.29,0.02769982]
[1737836554997,3.872,258.33,258.29,0.02769982]
[1737836555494,3.872,258.33,258.29,3.90019982]
[1737836558093,3.872,258.33,258.3,3.8724]
[1737836558298,5.88767818,258.34,258.3,3.8724]
[1737836558499,0.02718025,258.34,258.3,3.8724]
[1737836560200,3.89898025,258.34,258.3,3.8724]
[1737836560599,0.02718025,258.34,258.33,3.8719]
[1737836561199,0.02718025,258.34,258.3,3.8723]
[1737836562091,3.89898025,258.34,258.3,3.8723]
[1737836562700,3.89898025,258.34,258.29,0.02769982]
[1737836562895,3.89898025,258.34,258.29,3.90019982]
[1737836563197,3.89898025,258.34,258.29,0.02769982]
[1737836564096,3.89898025,258.34,258.3,3.8723]
[1737836565397,5.86049793,258.33,258.29,0.02769982]
[1737836566197,5.86049793,258.3,258.21,5.86049793]
[1737836566397,5.86049793,258.3,258.2,10.26588664]
[1737836566797,3.8728,258.28,258.18,75.99540834]
[1737836567302,9.73329793,258.28,258.23,3.8734]
[1737836567496,0.02972931,258.26,258.2,0.02638509]
[1737836567801,0.02972931,258.26,258.23,5.86049793]
[1737836568003,0.02972931,258.26,258.25,3.8731]
[1737836573102,2.931e-05,258.26,258.25,3.8731]
[1737836573403,2.931e-05,258.26,258.25,9.73359793]
[1737836575401,3.8713,258.38,258.33,3.8718]
[1737836575596,5.86049793,258.4,258.31,5.86049793]
[1737836575803,9.73119793,258.42,258.33,5.86049793]
[1737836576600,0.0256974,258.38,258.33,5.86049793]
[1737836577103,0.0256974,258.38,258.34,3.8718]
[1737836577303,0.0256974,258.38,258.33,5.86049793]
[1737836578307,0.0256974,258.38,258.35,3.8716]
[1737836581103,5.86049793,258.36,258.32,0.02709158]
[1737836581606,9.73209793,258.36,258.32,0.02709158]
[1737836583209,5.86049793,258.36,258.32,0.02709158]
[1737836583411,3.8717,258.35,258.32,0.02709158]
[1737836586010,5.86049793,258.34,258.32,0.02709158]
[1737836586211,5.86049793,258.34,258.23,5.86049793]
[1737836586510,5.86049793,258.31,258.21,5.86049793]
[1737836586809,9.73289793,258.31,258.26,3.873]
[1737836587411,9.76037305,258.31,258.26,3.89913868]
[1737836590112,3.8724,258.3,258.26,0.02613868]
[1737836593712,0.02747512,258.31,258.3,3.8724]
[1737836598417,7.512e-05,258.31,258.3,3.8724]
[1737836598725,5.86049793,258.45,258.39,3.8709]
[1737836599118,3.8703,258.44,258.39,3.8709]
[1737836599819,0.02712909,258.44,258.4,3.8708]
[1737836600019,0.02712909,258.44,258.39,0.02553659]
[1737836600615,0.02712909,258.44,258.4,5.86049793]
[1737836601216,0.02712909,258.44,258.42,3.8706]
[1737836601420,0.02712909,258.44,258.4,5.86049793]
[1737836601623,0.02712909,258.44,258.39,0.02553659]
[1737836603119,0.02712909,258.44,258.4,3.8708]
[1737836603925,3.8704,258.43,258.39,0.02553659]
[1737836604627,0.02712909,258.44,258.42,9.73109793]
[1737836605527,0.02712909,258.44,258.39,5.88603452]
[1737836606324,0.02712909,258.44,258.39,0.02553659]
[1737836606529,3.89742909,258.44,258.39,0.02553659]
[1737836606718,0.02712909,258.44,258.39,0.02553659]
[1737836609222,3.8708,258.41,258.39,0.02553659]
[1737836609428,5.86049793,258.4,258.3,5.86049793]
[1737836610224,3.8711,258.39,258.34,3.8717]
[1737836610726,3.89723626,258.39,258.34,3.90048241]
[1737836611332,0.02613626,258.39,258.34,3.90048241]
[1737836612926,0.02613626,258.39,258.35,3.8716]
[1737836613129,0.02613626,258.39,258.34,0.02878241]
[1737836613328,0.02613626,258.39,258.36,5.86049793]
[1737836614244,0.02613626,258.39,258.38,3.8712]
[1737836615339,2.6037,258.47,258.36,5.86049793]
[1737836615637,2.6037,258.47,258.34,0.02878241]
[1737836615638,2.6037,258.47,258.43,3.8704]
[1737836616532,6.4735,258.47,258.43,3.8704]
[1737836617040,6.4735,258.47,258.42,3.89879486]
[1737836617841,2.6037,258.47,258.42,3.89879486]
[1737836619841,6.4735,258.47,258.42,3.89879486]
[1737836620539,2.6037,258.47,258.44,3.8702]
[1737836622938,3.8703,258.45,258.42,0.02819486]
[1737836623138,5.86049793,258.43,258.42,0.02819486]
[1737836623739,9.73089793,258.43,258.42,0.02819486]
[1737836634250,3.8704,258.43,258.42,0.02819486]
[1737836634850,5.86049793,258.46,258.42,0.02819486]
[1737836635055,5.86049793,258.46,258.42,3.89879486]
[1737836635355,5.86049793,258.46,258.42,0.02819486]
[1737836635558,3.8703,258.44,258.42,0.02819486]
[1737836638458,5.86049793,258.46,258.42,0.02819486]
[1737836638664,9.73059793,258.46,258.42,0.02819486]
[1737836639564,3.8701,258.46,258.42,0.02819486]
[1737836639756,3.8701,258.46,258.43,3.8704]
[1737836640265,3.8701,258.46,258.42,3.89879486]
[1737836643760,1.34466644,258.48,258.42,0.02819486]
[1737836643964,5.21446644,258.48,258.42,0.02819486]
[1737836645067,5.21446644,258.48,258.44,3.8703]
[1737836645267,3.87,258.46,258.42,0.02819486]
[1737836645860,3.8702,258.45,258.42,3.89869486]
[1737836646061,3.8702,258.45,258.42,0.02819486]
[1737836647764,1.34466644,258.48,258.42,0.02819486]
[1737836647963,9.73089793,258.43,258.42,0.02819486]
[1737836649464,3.8711,258.39,258.3,3.8723]
[1737836649668,5.86049793,258.38,258.3,3.8723]
[1737836649967,5.86049793,258.38,258.29,5.86049793]
[1737836650769,0.02899661,258.36,258.31,0.02656498]
[1737836651163,3.90049661,258.36,258.31,3.89876498]
[1737836651367,0.02899661,258.36,258.31,3.89876498]
[1737836652371,0.02899661,258.36,258.32,3.8721]
[1737836652571,0.02899661,258.36,258.32,5.86049793]
[1737836653169,0.02899661,258.36,258.34,3.8717]
[1737836654163,0.02899661,258.36,258.35,3.8716]
[1737836656273,0.02899661,258.36,258.33,3.8718]
[1737836658173,5.86049793,258.35,258.31,3.89866498]
[1737836658374,5.86049793,258.35,258.31,0.02656498]
[1737836658874,9.73239793,258.33,258.31,0.02656498]
[1737836659472,5.86049793,258.33,258.31,0.02656498]
[1737836660974,0.02899661,258.36,258.31,0.02656498]
[1737836661179,0.02899661,258.36,258.32,5.86049793]
[1737836662679,0.02899661,258.36,258.35,3.8716]